[Event "WJCC U20 Girls 2019"]
[Site "New Delhi"]
[Date "2019.10.17"]
[Round "4.9"]
[White "Tsolakidou, Stavroula"]
[Black "Cervantes Landeiro, Thalia"]
[Result "1-0"]
[ECO "D25"]
[WhiteElo "2431"]
[BlackElo "2176"]
[Annotator "NA RC"]
[PlyCount "108"]
[EventDate "2019.10.15"]
[EventType "swiss"]
[EventCountry "IND"]
[SourceTitle "playchess.com"]
[Source "ChessBase"]
[SourceQuality "1"]
[TimeControl "40/5400+30:1800+30"]

1. d4 {[%emt 0:00:00]} d5 {[%emt 0:00:00]} 2. Nf3 {[%emt 0:02:35]} Nf6 {[%emt 0:00:00]} 3. c4 {[%emt 0:00:57]} dxc4 {[%emt 0:01:00]} 4. e3 {[%emt 0:00:11]} a6 {[%emt 0:04:48]} 5. Bxc4 {[%emt 0:02:32]} e6 {[%emt 0:00:39]} 6. O-O {[%emt 0:00:23]} c5 {[%emt 0:01:01]} 7. Bd3 {[%emt 0:00:31]} Nc6 {[%emt 0:02:01]} 8. Nc3 {[%emt 0:00:23]} cxd4 {[%emt 0:02:37]} 9. exd4 {[%emt 0:00:07]} Be7 {[%emt 0:00:24]} 10. Bg5 {[%emt 0:00:37]} h6 {[%emt 0:03:04]} 11. Bf4 {[%emt 0:16:00]} O-O $11 {[%emt 0:08:34]} 12. Rc1 {[%emt 0:09:57]} Bd6 {[%emt 0:18:58]} 13. Qd2 {[%emt 0:18:33]} Bxf4 {[%emt 0:04:15]} 14. Qxf4 {[%emt 0:00:22]} Nb4 {[%emt 0:01:30]} 15. Be4 {[%emt 0:11:33]} Bd7 {[%emt 0:06:21]} 16. Ne5 {[%emt 0:09:27]} Nxe4 {[%emt 0:04:14]} 17. Qxe4 {[%emt 0:02:19]} Bc6 {[%emt 0:02:57]} 18. Nxc6 {[%emt 0:02:29]} Nxc6 {[%emt 0:00:12]} 19. Rfd1 {[%emt 0:00:04]} Qg5 {[%emt 0:06:39]} 20. d5 {[%emt 0:06:20]} exd5 {[%emt 0:00:34]} 21. Qxd5 {[%emt 0:00:05]} Qxd5 {[%emt 0:05:58]} 22. Nxd5 {[%emt 0:00:34]} Rfd8 {[%emt 0:01:16]} 23. Kf1 {[%emt 0:02:26]} Kf8 {[%emt 0:01:27]} 24. Ne3 {[%emt 0:01:49]} Rxd1+ {[%emt 0:11:55]} 25. Rxd1 {[%emt 0:00:07]} Rd8 {[%emt 0:00:28]} 26. Rxd8+ {[%emt 0:00:41]} Nxd8 {[%emt 0:00:07]} 27. Ke2 {[%emt 0:00:04]} Ke7 {[%emt 0:01:48]} 28. Kd3 {[%emt 0:00:14]} Ne6 {[%emt 0:01:24]} 29. Ke4 {[%emt 0:01:30]} Kd6 {[%emt 0:03:10]} 30. Nf5+ {[%emt 0:01:48]} Kc5 {[%emt 0:03:15]} 31. Ke5 {[%emt 0:01:21]} b5 {[%emt 0:01:14]} 32. h4 {[%emt 0:02:30]} Kc4 {[%emt 0:02:39]} 33. Ke4 {[%emt 0:02:08]} Nc5+ {[%emt 0:00:21]} 34. Ke3 {[%emt 0:00:06]} Kd5 {[%emt 0:01:30]} 35. Nxg7 {[%emt 0:04:24]} Na4 {[%emt 0:00:15]} 36. Nf5 {[%emt 0:00:54]} Nxb2 {[%emt 0:00:23]} 37. Kd2 {[%emt 0:00:36]} Nc4+ {[%emt 0:00:43]} 38. Kc3 {[%emt 0:00:35]} h5 {[%emt 0:00:38]} 39. Ng3 {[%emt 0:00:36]} Nd6 {[%emt 0:00:34]} 40. f3 {[%emt 0:00:21]} a5 {[%emt 0:00:27]} 41. Nxh5 {[%emt 0:02:40]} Nf5 {[%emt 0:07:03]} 42. Nf4+ {[%emt 0:12:32]} Ke5 {[%emt 0:00:54]} 43. Nd3+ {[%emt 0:00:06]} Kf6 {[%emt 0:00:40]} 44. h5 {[%emt 0:01:21]} Nh4 {[%emt 0:03:15]} 45. Kd4 {[%emt 0:06:00]} Nxg2 {[%emt 0:01:51]} 46. Kc5 {[%emt 0:00:24]} Kg5 {[%emt 0:07:11]} 47. Kxb5 {[%emt 0:00:17]} Kxh5 {[%emt 0:00:08]} 48. Kxa5 {[%emt 0:00:12]} Kg5 {[%emt 0:00:42]} 49. Kb5 {[%emt 0:02:14]} Kf5 {[%emt 0:09:08]} 50. a4 {[%emt 0:02:03]} Ke6 {[%emt 0:00:44]} 51. Kc6 {[%emt 0:01:37]} Nh4 {[%emt 0:02:38]} 52. a5 {[%emt 0:01:22]} Nxf3 {[%emt 0:00:13]} 53. a6 {[%emt 0:00:09]} Nd4+ {[%emt 0:00:08]} 54. Kb6 {[%emt 0:00:10]} Kd5 1-0

[Event "WJCC U20 Girls 2019"]
[Site "New Delhi"]
[Date "2019.10.17"]
[Round "4.10"]
[White "Avetisyan, Mariam"]
[Black "Narva, Mai"]
[Result "1/2-1/2"]
[ECO "A48"]
[WhiteElo "2110"]
[BlackElo "2378"]
[Annotator "NA"]
[PlyCount "124"]
[EventDate "2019.10.15"]
[EventType "swiss"]
[EventCountry "IND"]
[SourceTitle "playchess.com"]
[Source "ChessBase"]
[SourceQuality "1"]
[TimeControl "40/5400+30:1800+30"]

1. d4 {[%emt 0:00:00]} Nf6 {[%emt 0:00:00]} 2. Nf3 {[%emt 0:00:00]} g6 {[%emt 0:00:02]} 3. Bf4 {[%emt 0:00:04]} Bg7 {[%emt 0:00:12]} 4. e3 {[%emt 0:00:07]} O-O {[%emt 0:00:15]} 5. Be2 {[%emt 0:00:08]} c5 {[%emt 0:00:24]} 6. c3 {[%emt 0:00:45]} b6 {[%emt 0:00:16]} 7. Nbd2 {[%emt 0:00:25]} Bb7 {[%emt 0:00:13]} 8. O-O {[%emt 0:02:51]} d6 {[%emt 0:00:26]} 9. h3 {[%emt 0:00:16]} Nbd7 {[%emt 0:00:18]} 10. Qb1 {[%emt 0:00:38]} Re8 {[%emt 0:02:16]} 11. Bh2 {[%emt 0:02:16]} e5 {[%emt 0:02:34]} 12. dxe5 {[%emt 0:13:00]} dxe5 {[%emt 0:01:11]} 13. Rd1 {[%emt 0:05:03]} Qc7 {[%emt 0:10:39]} 14. Nc4 {[%emt 0:06:24]} Bd5 {[%emt 0:01:48]} 15. a4 {[%emt 0:03:29]} a6 {[%emt 0:02:01]} 16. Rd2 {[%emt 0:09:41]} Rab8 {[%emt 0:07:58]} 17. Qd1 {[%emt 0:26:47]} b5 {[%emt 0:05:46]} 18. axb5 {[%emt 0:01:18]} axb5 {[%emt 0:00:16]} 19. Na3 {[%emt 0:00:44]} Bc6 {[%emt 0:05:43]} 20. c4 {[%emt 0:02:28]} b4 {[%emt 0:09:43]} 21. Nb5 {[%emt 0:00:57]} Bxb5 {[%emt 0:05:50]} 22. cxb5 {[%emt 0:00:05]} Re7 {[%emt 0:01:18]} 23. Qc2 {[%emt 0:04:39]} Rc8 24. Rc1 {[%emt 0:03:21]} Nb6 {[%emt 0:05:53]} 25. Bc4 {[%emt 0:04:13]} Nxc4 {[%emt 0:02:17]} 26. Qxc4 {[%emt 0:00:03]} Nd7 {[%emt 0:00:43]} 27. Rdc2 {[%emt 0:00:47]} Qb7 {[%emt 0:01:28]} 28. Nd2 {[%emt 0:02:33]} Rb8 {[%emt 0:14:23]} 29. Nb3 {[%emt 0:00:59]} Qxb5 {[%emt 0:00:40]} 30. Qxb5 {[%emt 0:01:24]} Rxb5 {[%emt 0:00:08]} 31. Nxc5 {[%emt 0:00:14]} Nxc5 {[%emt 0:09:58]} 32. Rxc5 {[%emt 0:00:03]} Rxc5 {[%emt 0:00:25]} 33. Rxc5 {[%emt 0:00:04]} f6 {[%emt 0:00:29]} 34. g4 {[%emt 0:05:29]} Bf8 {[%emt 0:03:43]} 35. Rb5 {[%emt 0:01:02]} Re6 {[%emt 0:01:00]} 36. g5 {[%emt 0:00:35]} Kf7 {[%emt 0:00:25]} 37. Bg3 {[%emt 0:01:31]} Bd6 {[%emt 0:01:22]} 38. gxf6 {[%emt 0:00:21]} Kxf6 {[%emt 0:00:22]} 39. f3 {[%emt 0:00:26]} e4 {[%emt 0:04:18]} 40. Bxd6 {[%emt 0:01:02]} Rxd6 {[%emt 0:00:07]} 41. Rxb4 {[%emt 0:33:09]} Rd2 {[%emt 0:32:30]} 42. Rxe4 {[%emt 0:00:00]} Rxb2 {[%emt 0:00:00]} 43. Rg4 {[%emt 0:00:00]} Kf5 {[%emt 0:00:00]} 44. Rg2 {[%emt 0:00:00]} Rb3 {[%emt 0:00:00]} 45. Re2 {[%emt 0:00:00]} g5 {[%emt 0:00:00]} 46. Kf2 {[%emt 0:00:00]} h5 {[%emt 0:00:00]} 47. h4 {[%emt 0:00:00]} g4 {[%emt 0:00:00]} 48. Rd2 {[%emt 0:00:00]} g3+ {[%emt 0:00:00]} 49. Kxg3 {[%emt 0:00:00]} Rxe3 {[%emt 0:00:00]} 50. Rd5+ {[%emt 0:00:00]} Kg6 {[%emt 0:00:00]} 51. Rd6+ {[%emt 0:00:00]} Kg7 {[%emt 0:00:00]} 52. Kf4 {[%emt 0:00:00]} Ra3 {[%emt 0:00:00]} 53. Ke4 {[%emt 0:00:00]} Ra1 {[%emt 0:00:00]} 54. f4 {[%emt 0:00:00]} Rh1 {[%emt 0:00:00]} 55. Ke5 {[%emt 0:00:10]} Rxh4 {[%emt 0:00:00]} 56. Rd7+ {[%emt 0:00:28]} Kf8 {[%emt 0:00:34]} 57. f5 {[%emt 0:01:17]} Ra4 {[%emt 0:00:51]} 58. Kf6 {[%emt 0:00:43]} Ra6+ {[%emt 0:00:13]} 59. Kg5 {[%emt 0:00:11]} h4 {[%emt 0:00:24]} 60. Kxh4 {[%emt 0:00:26]} Rb6 {[%emt 0:00:09]} 61. Kg5 {[%emt 0:00:06]} Ra6 {[%emt 0:00:10]} 62. f6 {[%emt 0:00:49]} Ra1 {[%emt 0:00:09]} 1/2-1/2

[Event "WJCC U20 Girls 2019"]
[Site "New Delhi"]
[Date "2019.10.17"]
[Round "4.12"]
[White "Berdnyk, Mariia"]
[Black "Kairbekova, Amina"]
[Result "1-0"]
[ECO "A38"]
[WhiteElo "2349"]
[BlackElo "2096"]
[Annotator "NA"]
[PlyCount "77"]
[EventDate "2019.10.15"]
[EventType "swiss"]
[EventCountry "IND"]
[SourceTitle "playchess.com"]
[Source "ChessBase"]
[SourceQuality "1"]
[TimeControl "40/5400+30:1800+30"]

1. c4 {[%emt 0:00:00]} c5 {[%emt 0:00:00]} 2. Nf3 {[%emt 0:00:00]} Nf6 {[%emt 0:00:00]} 3. Nc3 {[%emt 0:00:00]} Nc6 {[%emt 0:00:00]} 4. g3 {[%emt 0:00:02]} g6 {[%emt 0:00:00]} 5. Bg2 {[%emt 0:00:05]} Bg7 {[%emt 0:00:00]} 6. d4 {[%emt 0:00:26]} cxd4 {[%emt 0:00:00]} 7. Nxd4 {[%emt 0:00:03]} O-O {[%emt 0:00:05]} 8. O-O {[%emt 0:00:18]} Qa5 {[%emt 0:00:03]} 9. e3 {[%emt 0:05:02]} d6 {[%emt 0:00:13]} 10. Qe2 {[%emt 0:08:26]} Bg4 {[%emt 0:04:25]} 11. f3 {[%emt 0:00:49]} Bd7 {[%emt 0:00:58]} 12. Nb3 {[%emt 0:02:18]} Qb6 {[%emt 0:03:37]} 13. Kh1 {[%emt 0:01:36]} Rac8 {[%emt 0:00:10]} 14. e4 {[%emt 0:06:51]} Ne5 {[%emt 0:11:19]} 15. Be3 {[%emt 0:05:20]} Qa6 {[%emt 0:01:09]} 16. c5 {[%emt 0:01:04]} Qxe2 {[%emt 0:01:17]} 17. Nxe2 {[%emt 0:00:01]} Bb5 {[%emt 0:04:38]} 18. Rfe1 {[%emt 0:11:23]} Nd3 {[%emt 0:02:03]} 19. Reb1 {[%emt 0:01:27]} dxc5 {[%emt 0:03:24]} 20. Nc3 {[%emt 0:00:19]} Ba6 {[%emt 0:00:39]} 21. e5 {[%emt 0:02:53]} Nxe5 {[%emt 0:17:29]} 22. Nxc5 {[%emt 0:06:25]} Nc4 {[%emt 0:00:33]} 23. Bg1 {[%emt 0:00:39]} Nh5 {[%emt 0:03:37]} 24. Nd5 {[%emt 0:10:00]} Rfe8 {[%emt 0:05:38]} 25. a4 {[%emt 0:01:32]} Nxb2 {[%emt 0:12:02]} 26. Nb4 {[%emt 0:02:14]} Bc4 {[%emt 0:16:07]} 27. Nxb7 {[%emt 0:07:40]} Nd3 {[%emt 0:08:53]} 28. Ra3 {[%emt 0:01:01]} Nxb4 {[%emt 0:00:07]} 29. Rxb4 {[%emt 0:00:05]} a6 {[%emt 0:01:13]} 30. f4 {[%emt 0:04:20]} e5 {[%emt 0:04:40]} 31. Nd6 {[%emt 0:02:52]} Bf8 {[%emt 0:00:01]} 32. fxe5 {[%emt 0:00:18]} Bxd6 {[%emt 0:01:07]} 33. exd6 {[%emt 0:00:06]} a5 {[%emt 0:00:30]} 34. Rb7 {[%emt 0:03:04]} Rcd8 {[%emt 0:00:25]} 35. Rc3 {[%emt 0:02:23]} Rxd6 {[%emt 0:00:35]} 36. Rxc4 {[%emt 0:00:07]} Re1 {[%emt 0:00:06]} 37. Bf3 {[%emt 0:00:38]} Rf6 {[%emt 0:00:47]} 38. Rb3 {[%emt 0:00:32]} Kg7 {[%emt 0:00:46]} 39. Kg2 {[%emt 0:00:12]} 1-0

[Event "WJCC U20 Girls 2019"]
[Site "New Delhi"]
[Date "2019.10.17"]
[Round "4.13"]
[White "Dwilewicz, Katarzyna"]
[Black "Dordzhieva, Dinara"]
[Result "1/2-1/2"]
[ECO "B84"]
[WhiteElo "2106"]
[BlackElo "2335"]
[Annotator "NA RC"]
[PlyCount "121"]
[EventDate "2019.10.15"]
[EventType "swiss"]
[EventCountry "IND"]
[SourceTitle "playchess.com"]
[Source "ChessBase"]
[SourceQuality "1"]
[TimeControl "40/5400+30:1800+30"]

1. e4 {[%emt 0:00:00]} c5 {[%emt 0:00:00]} 2. Nf3 {[%emt 0:00:00]} d6 {[%emt 0:00:00]} 3. d4 {[%emt 0:00:00]} cxd4 {[%emt 0:00:00]} 4. Nxd4 {[%emt 0:00:00]} Nf6 {[%emt 0:00:00]} 5. Nc3 {[%emt 0:00:06]} a6 {[%emt 0:00:00]} 6. Be2 {[%emt 0:00:19]} e6 {[%emt 0:00:00]} 7. O-O {[%emt 0:00:30]} Be7 {[%emt 0:00:00]} 8. f4 {[%emt 0:00:44]} Nc6 {[%emt 0:00:14]} 9. Be3 {[%emt 0:00:54]} O-O {[%emt 0:00:07]} 10. Qe1 {[%emt 0:03:49]} Bd7 {[%emt 0:03:54]} 11. Qg3 {[%emt 0:03:35]} Nxd4 {[%emt 0:00:29]} 12. Bxd4 {[%emt 0:00:08]} Bc6 {[%emt 0:00:03]} 13. Rae1 {[%emt 0:07:38]} b5 {[%emt 0:03:27]} 14. a3 {[%emt 0:00:57]} Qc7 {[%emt 0:18:41]} 15. Bd3 {[%emt 0:03:42]} Rad8 {[%emt 0:04:39]} 16. Kh1 {[%emt 0:01:26]} Rd7 {[%emt 0:02:33]} 17. Nd5 {[%emt 0:04:17]} exd5 {[%emt 0:13:30]} 18. exd5 {[%emt 0:00:20]} Bxd5 {[%emt 0:01:38]} 19. Rxe7 {[%emt 0:00:47]} Nh5 {[%emt 0:01:31]} 20. Qg5 {[%emt 0:00:44]} Rxe7 {[%emt 0:01:44]} 21. Qxd5 {[%emt 0:00:31]} g6 {[%emt 0:04:44]} 22. f5 {[%emt 0:01:55]} Re5 {[%emt 0:13:48]} 23. Bxe5 {[%emt 0:02:03]} dxe5 {[%emt 0:00:18]} 24. Re1 {[%emt 0:16:00]} Re8 {[%emt 0:01:22]} 25. Qf3 {[%emt 0:06:44]} Qd6 {[%emt 0:04:04]} 26. g3 {[%emt 0:09:34]} Nf6 {[%emt 0:01:50]} 27. Be4 {[%emt 0:04:19]} Rd8 {[%emt 0:00:45]} 28. Re2 {[%emt 0:14:52]} Kg7 {[%emt 0:01:44]} 29. Kg2 {[%emt 0:01:25]} Qc5 {[%emt 0:04:44]} 30. Bd3 {[%emt 0:04:05]} Qd4 {[%emt 0:01:56]} 31. Qe3 {[%emt 0:02:32]} Qxb2 {[%emt 0:05:12]} 32. Qxe5 {[%emt 0:00:38]} Qxa3 {[%emt 0:00:06]} 33. fxg6 {[%emt 0:07:05]} hxg6 {[%emt 0:00:17]} 34. g4 {[%emt 0:02:21]} Qd6 {[%emt 0:02:12]} 35. g5 {[%emt 0:02:21]} Qxe5 {[%emt 0:01:25]} 36. Rxe5 {[%emt 0:00:04]} Nd5 {[%emt 0:00:41]} 37. Kf3 {[%emt 0:01:22]} Nb4 {[%emt 0:03:58]} 38. Ke3 {[%emt 0:00:37]} Nc6 {[%emt 0:04:03]} 39. Rc5 {[%emt 0:00:18]} Rd6 {[%emt 0:02:08]} 40. h4 {[%emt 0:00:30]} Kf8 {[%emt 0:00:49]} 41. Be4 {[%emt 0:04:45]} Nd8 {[%emt 0:02:18]} 42. c4 {[%emt 0:18:28]} Rb6 {[%emt 0:03:48]} 43. Rc8 {[%emt 0:00:31]} Ke7 {[%emt 0:14:58]} 44. c5 {[%emt 0:01:32]} Re6 {[%emt 0:00:03]} 45. c6 {[%emt 0:01:10]} Nxc6 {[%emt 0:00:25]} 46. Rc7+ {[%emt 0:02:16]} Kd6 {[%emt 0:05:18]} 47. Rxc6+ {[%emt 0:00:06]} Kd7 {[%emt 0:00:02]} 48. Rxe6 {[%emt 0:00:24]} Kxe6 {[%emt 0:00:10]} 49. Kd4 {[%emt 0:00:53]} a5 {[%emt 0:01:39]} 50. Bd5+ {[%emt 0:02:01]} Kf5 {[%emt 0:01:04]} 51. Bxf7 {[%emt 0:00:06]} a4 {[%emt 0:00:56]} 52. Be8 {[%emt 0:01:06]} a3 {[%emt 0:00:06]} 53. Bd7+ {[%emt 0:00:40]} Kf4 {[%emt 0:00:23]} 54. Kc3 {[%emt 0:00:19]} b4+ {[%emt 0:01:15]} 55. Kb3 {[%emt 0:00:06]} Ke5 {[%emt 0:00:04]} 56. Bg4 {[%emt 0:01:47]} Kf4 {[%emt 0:00:39]} 57. Bd1 {[%emt 0:00:20]} Kf5 {[%emt 0:00:33]} 58. Ka2 {[%emt 0:00:48]} Kf4 {[%emt 0:00:13]} 59. Be2 {[%emt 0:01:58]} Kf5 {[%emt 0:00:05]} 60. Kb3 {[%emt 0:00:31]} Kf4 {[%emt 0:00:05]} 61. Bd1 {[%emt 0:00:31]} 1/2-1/2

[Event "WJCC U20 Girls 2019"]
[Site "New Delhi"]
[Date "2019.10.17"]
[Round "4.14"]
[White "Nastase, Andreea-Cristina"]
[Black "Yakubbaeva, Nilufar"]
[Result "0-1"]
[ECO "E40"]
[WhiteElo "2077"]
[BlackElo "2281"]
[Annotator "NA"]
[PlyCount "73"]
[EventDate "2019.10.15"]
[EventType "swiss"]
[EventCountry "IND"]
[SourceTitle "playchess.com"]
[Source "ChessBase"]
[SourceQuality "1"]
[TimeControl "40/5400+30:1800+30"]

1. d4 {[%emt 0:00:00]} Nf6 {[%emt 0:00:00]} 2. c4 {[%emt 0:00:00]} e6 {[%emt 0:00:00]} 3. Nc3 {[%emt 0:00:00]} Bb4 {[%emt 0:00:03]} 4. e3 {[%emt 0:00:04]} d5 {[%emt 0:02:02]} 5. Nf3 {[%emt 0:00:12]} O-O {[%emt 0:00:15]} 6. Bd3 {[%emt 0:00:03]} Nbd7 {[%emt 0:01:54]} 7. O-O {[%emt 0:00:10]} dxc4 {[%emt 0:04:29]} 8. Bxc4 {[%emt 0:00:07]} Qe7 {[%emt 0:00:36]} 9. a3 {[%emt 0:01:09]} Bxc3 {[%emt 0:02:23]} 10. bxc3 {[%emt 0:00:06]} e5 {[%emt 0:02:06]} 11. a4 {[%emt 0:02:38]} e4 {[%emt 0:03:46]} 12. Ba3 {[%emt 0:00:27]} c5 {[%emt 0:01:31]} 13. Ng5 {[%emt 0:10:03]} h6 {[%emt 0:02:36]} 14. Nxf7 {[%emt 0:00:42]} Rxf7 {[%emt 0:02:10]} 15. dxc5 {[%emt 0:00:44]} Ne5 {[%emt 0:02:39]} 16. c6 {[%emt 0:00:54]} Qe8 {[%emt 0:01:58]} 17. Bxf7+ {[%emt 0:01:24]} Qxf7 {[%emt 0:00:27]} 18. Qd8+ {[%emt 0:02:07]} Kh7 {[%emt 0:00:54]} 19. c7 {[%emt 0:01:27]} Qh5 {[%emt 0:04:47]} 20. Rfd1 {[%emt 0:08:24]} Nfg4 {[%emt 0:05:42]} 21. h4 {[%emt 0:02:16]} Nf6 {[%emt 0:04:02]} 22. Be7 {[%emt 0:02:59]} Neg4 {[%emt 0:06:12]} 23. Bxf6 {[%emt 0:02:15]} Nxf6 {[%emt 0:00:06]} 24. Qf8 {[%emt 0:04:48]} Qxh4 {[%emt 0:09:11]} 25. Rd8 {[%emt 0:02:12]} Qg4 {[%emt 0:03:08]} 26. Rad1 {[%emt 0:02:23]} Be6 {[%emt 0:01:39]} 27. R1d2 {[%emt 0:02:04]} Rc8 {[%emt 0:01:06]} 28. Rxc8 {[%emt 0:01:18]} Bxc8 {[%emt 0:00:43]} 29. Qd6 {[%emt 0:08:37]} Kg6 {[%emt 0:07:51]} 30. Qg3 {[%emt 0:01:47]} Qxg3 {[%emt 0:00:39]} 31. fxg3 {[%emt 0:00:03]} Nd7 {[%emt 0:00:06]} 32. Rd4 {[%emt 0:01:04]} Kf5 {[%emt 0:00:33]} 33. Rd6 {[%emt 0:01:00]} a5 {[%emt 0:03:09]} 34. c4 {[%emt 0:03:15]} Ke5 {[%emt 0:02:54]} 35. Rg6 {[%emt 0:00:15]} Nc5 {[%emt 0:01:53]} 36. g4 {[%emt 0:08:05]} Ne6 {[%emt 0:01:29]} 37. Kf2 {[%emt 0:03:22]} 0-1

[Event "WJCC U20 Girls 2019"]
[Site "New Delhi"]
[Date "2019.10.17"]
[Round "4.15"]
[White "Gomez Barrera, Javiera Belen"]
[Black "Diakonova, Ekaterina"]
[Result "0-1"]
[ECO "B12"]
[WhiteElo "2033"]
[BlackElo "2231"]
[Annotator "NA"]
[PlyCount "90"]
[EventDate "2019.10.15"]
[EventType "swiss"]
[EventCountry "IND"]
[SourceTitle "playchess.com"]
[Source "ChessBase"]
[SourceQuality "1"]
[TimeControl "40/5400+30:1800+30"]

1. e4 {[%emt 0:00:00]} c6 {[%emt 0:00:00]} 2. d4 {[%emt 0:00:00]} d5 {[%emt 0:00:00]} 3. e5 {[%emt 0:00:00]} Bf5 {[%emt 0:00:00]} 4. h4 {[%emt 0:00:07]} h5 {[%emt 0:00:00]} 5. Bd3 {[%emt 0:00:24]} Bxd3 {[%emt 0:00:22]} 6. Qxd3 {[%emt 0:00:03]} Qa5+ {[%emt 0:00:09]} 7. Nd2 {[%emt 0:00:20]} e6 {[%emt 0:01:53]} 8. Ngf3 {[%emt 0:13:55]} Ne7 {[%emt 0:06:48]} 9. c4 {[%emt 0:04:54]} dxc4 {[%emt 0:07:28]} 10. Qxc4 {[%emt 0:00:21]} Nd7 {[%emt 0:01:27]} 11. O-O {[%emt 0:01:44]} Nf5 {[%emt 0:05:18]} 12. Ne4 {[%emt 0:08:56]} Be7 {[%emt 0:00:26]} 13. Bg5 {[%emt 0:02:39]} Qd5 {[%emt 0:11:35]} 14. Qd3 {[%emt 0:18:03]} Bxg5 {[%emt 0:00:45]} 15. Nexg5 {[%emt 0:00:30]} Nb6 {[%emt 0:10:25]} 16. Rfd1 {[%emt 0:04:05]} Qd7 {[%emt 0:05:45]} 17. Ne4 {[%emt 0:17:11]} Qe7 {[%emt 0:06:25]} 18. g3 {[%emt 0:12:20]} O-O-O {[%emt 0:17:04]} 19. Rab1 {[%emt 0:07:38]} Rd5 {[%emt 0:00:17]} 20. Nc3 {[%emt 0:01:02]} Rd7 {[%emt 0:00:31]} 21. Qe4 {[%emt 0:02:33]} Rhd8 {[%emt 0:03:45]} 22. b4 {[%emt 0:00:27]} Kb8 {[%emt 0:00:18]} 23. a4 {[%emt 0:01:30]} Nd5 {[%emt 0:01:44]} 24. Na2 {[%emt 0:00:59]} a5 {[%emt 0:02:34]} 25. bxa5 {[%emt 0:01:21]} Qa3 {[%emt 0:00:16]} 26. Qe2 {[%emt 0:01:27]} Qxa4 {[%emt 0:02:02]} 27. Qb2 {[%emt 0:00:28]} Qxa5 {[%emt 0:04:35]} 28. Nd2 b5 {[%emt 0:02:58]} 29. Nb3 {[%emt 0:00:58]} Qb6 {[%emt 0:00:35]} 30. Nc5 {[%emt 0:00:17]} Ra7 {[%emt 0:00:18]} 31. Ra1 {[%emt 0:00:44]} Kc7 {[%emt 0:01:22]} 32. Nb4 {[%emt 0:00:31]} Rxa1 {[%emt 0:02:03]} 33. Nxd5+ {[%emt 0:00:30]} Rxd5 {[%emt 0:00:23]} 34. Qxa1 {[%emt 0:00:28]} Nxd4 {[%emt 0:01:26]} 35. Rxd4 {[%emt 0:00:27]} Qxc5 {[%emt 0:00:47]} 36. Rxd5 {[%emt 0:00:35]} exd5 {[%emt 0:02:17]} 37. Qd1 {[%emt 0:00:31]} g6 {[%emt 0:00:52]} 38. Qf3 {[%emt 0:00:22]} Qe7 {[%emt 0:00:23]} 39. Qe3 {[%emt 0:00:36]} c5 {[%emt 0:01:15]} 40. Qa3 {[%emt 0:00:31]} Kb7 {[%emt 0:01:21]} 41. Qa5 {[%emt 0:02:10]} Qd7 {[%emt 0:04:38]} 42. Kf1 {[%emt 0:00:25]} d4 {[%emt 0:01:54]} 43. Ke1 {[%emt 0:00:41]} Qc6 {[%emt 0:01:26]} 44. Kd2 {[%emt 0:00:22]} Qb6 {[%emt 0:07:37]} 45. Qa2 {[%emt 0:00:37]} c4 {[%emt 0:03:50]} 0-1

[Event "WJCC U20 Girls 2019"]
[Site "New Delhi"]
[Date "2019.10.17"]
[Round "4.16"]
[White "Eesha Ajay Sarda"]
[Black "Olde, Margareth"]
[Result "0-1"]
[ECO "B47"]
[WhiteElo "1744"]
[BlackElo "2205"]
[Annotator "NA"]
[PlyCount "106"]
[EventDate "2019.10.15"]
[EventType "swiss"]
[EventCountry "IND"]
[SourceTitle "playchess.com"]
[Source "ChessBase"]
[SourceQuality "1"]
[TimeControl "40/5400+30:1800+30"]

1. e4 c5 2. Nf3 Nc6 3. d4 cxd4 4. Nxd4 e6 5. Nc3 Qc7 6. f4 a6 7. Nxc6 Qxc6 8. Be2 Bc5 9. Qd3 Ne7 10. Be3 Bxe3 11. Qxe3 O-O 12. O-O d5 13. Bf3 dxe4 14. Bxe4 Qc7 15. Rad1 Nf5 16. Qf2 Nd6 17. Bd3 b5 18. Ne4 Nxe4 19. Bxe4 Rb8 20. Rd3 b4 21. Rd4 Bb7 22. Bxb7 Rxb7 23. Rfd1 g6 24. Qd2 Qc5 25. Kh1 a5 26. Rc1 a4 27. c3 bxc3 28. Rxc3 Qb5 29. h3 Qxb2 30. Qxb2 Rxb2 31. Rxa4 Rd8 32. Rg3 Rd1+ 33. Kh2 Rdd2 34. a3 Ra2 35. Rc4 Kg7 36. Rcc3 h5 37. h4 Rd4 38. Rgf3 e5 39. fxe5 Rxh4+ 40. Rh3 Rxh3+ 41. Kxh3 Re2 42. Rc5 Re3+ 43. g3 Rxa3 44. Kg2 Kf8 45. Kf2 Ke7 46. Rc4 Ke6 47. Rf4 Ra7 48. Ke3 Kxe5 49. Re4+ Kf5 50. Rf4+ Kg5 51. Kf3 f5 52. Kg2 Re7 53. Kf3 Re4 0-1

[Event "WJCC U20 Girls 2019"]
[Site "New Delhi"]
[Date "2019.10.17"]
[Round "4.17"]
[White "Zhu, Jiner"]
[Black "Vlkova, Anezka"]
[Result "1-0"]
[ECO "A06"]
[WhiteElo "2507"]
[BlackElo "1972"]
[Annotator "RC"]
[PlyCount "59"]
[EventDate "2019.10.15"]
[EventType "swiss"]
[EventCountry "IND"]
[SourceTitle "playchess.com"]
[Source "ChessBase"]
[SourceQuality "1"]
[TimeControl "40/5400+30:1800+30"]

1. Nf3 d5 2. b3 c5 3. Bb2 Nc6 4. e3 Bg4 5. Be2 Nf6 6. O-O Qc7 7. c4 dxc4 8. bxc4 e6 9. h3 Bh5 10. d4 Be7 11. d5 Rd8 12. Nc3 O-O 13. a3 a6 14. Re1 exd5 15. cxd5 b5 16. e4 b4 17. axb4 cxb4 18. Na4 Bxf3 19. Bxf3 Ne5 20. Bd4 Rb8 21. Be2 Ng6 22. Bxa6 Qf4 23. g3 Qg5 24. Bf1 Bd6 25. Bg2 Nd7 26. h4 Qd8 27. h5 Nge5 28. f4 Nc4 29. e5 Bc7 30. e6 1-0